fUST/lending_fUST_20240408
["ID","MTS","AMOUNT","RATE_DAILY","PERIOD"]
[321804102,1712532640130,-183.34871193,0.0002792,2]
[321804103,1712532640139,-158.37964072,0.00027926,2]
[321804104,1712532640148,-620.76003136,0.00027944,2]
[321804105,1712532640158,-155.37830988,0.00027998,2]
[321804106,1712532640169,-155.47199909,0.00027998,2]
[321804107,1712532640178,-1253.40846375,0.00027998,2]
[321804108,1712532640187,-725.24418472,0.00027998,2]
[321804109,1712532640196,-946.40295795,0.00027998,2]
[321804110,1712532640205,-591.53307832,0.00027998,2]
[321804111,1712532640216,-189.10726066,0.00027998,2]
[321804112,1712532640226,-157.50269185,0.00027998,2]
[321804113,1712532640236,-183.98204867,0.00027998,2]
[321804114,1712532640245,-1387.99801533,0.00027998,2]
[321804115,1712532640254,-289.13990949,0.00027998,2]
[321804116,1712532640264,-632.27394032,0.00027998,2]
[321804117,1712532640275,-754.97662167,0.00027998,2]
[321804140,1712532643055,-213.35747735,0.00027998,2]
[321804141,1712532643065,-2785.91246842,0.00027998,2]
[321804142,1712532643074,-1340.39270719,0.00027998,2]
[321804143,1712532643083,-1912.09267002,0.00027998,2]
[321804144,1712532643092,-204.01567981,0.00027998,2]
[321804145,1712532643104,-358.98418543,0.00027998,2]
[321804146,1712532643113,-628.03460715,0.00027999,2]
[321804147,1712532643123,-3466.90936897,0.00027999,2]
[321804199,1712533565080,1166.58642061,0.00022486,2]
[321804200,1712533569705,188.53515782,0.00022485,2]
[321809336,1712533832008,-163.75755797,0.00025095,2]
[321809337,1712533832017,-578.66571803,0.00025095,2]
[321809338,1712533832027,-375.41972199,0.00025096,2]
[321809339,1712533832036,-183.34871193,0.00025098,2]
[321809340,1712533832045,-102.768567,0.00025195,2]
[321809341,1712533832062,-197.231433,0.00025195,2]
[321809342,1712533832071,-230.0,0.00025195,2]
[321809343,1712533832081,-629.04701721,0.00025196,2]
[321809344,1712533832092,-1126.2797205,0.00025196,2]
[321809386,1712533838069,-7662.0664237,0.00025196,2]
[321809387,1712533838078,-324.36958864,0.00025197,2]
[321809429,1712533843153,-30815.7214129,0.00025197,2]
[321809430,1712533843162,-155.07133281,0.00025199,2]
[321809431,1712533843172,-183.34871193,0.00026883,2]
[321809432,1712533843182,-1572.7699706,0.00027,2]
[321809433,1712533843192,-202.586475,0.00027397,2]
[321809434,1712533843201,-420.0,0.00027715,2]
[321809435,1712533843210,-300.0,0.000279,2]
[321809436,1712533843219,-620.76003136,0.00027944,2]
[321809437,1712533843228,-39.02772775,0.00027999,2]
[321814355,1712535038277,-1398.31162002,0.00024999,2]
[321814362,1712535038333,-747.08270262,0.00024999,2]
[321814364,1712535038342,-151.47792473,0.00025097,2]
[321814366,1712535038353,-164.90963981,0.00025197,2]
[321814368,1712535038362,-160.17426903,0.00025197,2]
[321814370,1712535038371,-155.07133281,0.00025199,2]
[321814371,1712535038381,-151.4779246,0.00025351,2]
[321814373,1712535038391,-151.4779246,0.00025604,2]
[321814375,1712535038401,-151.4779246,0.00025858,2]
[321814378,1712535038411,-210.36588987,0.000259,2]
[321814381,1712535038423,-151.4779246,0.00026111,2]
[321814386,1712535038434,-151.4779246,0.00026365,2]
[321814387,1712535038444,-151.4779246,0.00026618,2]
[321814390,1712535038454,-151.4779246,0.00026872,2]
[321814391,1712535038464,-1572.7699706,0.00027,2]
[321814393,1712535038474,-151.4779246,0.00027125,2]
[321814396,1712535038483,-210.36588986,0.00027216,2]
[321814398,1712535038494,-300.0,0.00027315,2]
[321814399,1712535038503,-153.0,0.00027316,2]
[321814401,1712535038513,-153.0,0.00027316,2]
[321814403,1712535038522,-153.0,0.00027316,2]
[321814405,1712535038531,-153.0,0.00027316,2]
[321814407,1712535038542,-153.0,0.00027316,2]
[321814409,1712535038553,-151.4779246,0.00027379,2]
[321814411,1712535038563,-160.58801,0.00027397,2]
[321814414,1712535038574,-262.665641,0.00027397,2]
[321814416,1712535038583,-250.93300524,0.0002747,2]
[321814418,1712535038593,-46.85006468,0.000275,2]
[321814903,1712535043453,-1953.14993532,0.000275,2]
[321814904,1712535043463,-2000.0,0.0002751,2]
[321814905,1712535043472,-1295.14081628,0.0002752,2]
[321814906,1712535043483,-704.85918372,0.0002752,2]
[321814907,1712535043493,-495.13414842,0.0002753,2]
[321814910,1712535043504,-1504.86585158,0.0002753,2]
[321814912,1712535043514,-2000.0,0.0002754,2]
[321814914,1712535043523,-2000.0,0.0002755,2]
[321814916,1712535043532,-2000.0,0.0002756,2]
[321814917,1712535043541,-2000.0,0.0002757,2]
[321814919,1712535043550,-2000.0,0.0002758,2]
[321814921,1712535043559,-2184.988956,0.0002759,2]
[321814924,1712535043572,-151.4779246,0.00027632,2]
[321814926,1712535043581,-150.18103304,0.00027719,3]
[321814928,1712535043591,-250.93300523,0.00027769,2]
[321814930,1712535043600,-10000.0,0.00027788,2]
[321814932,1712535043609,-151.4779246,0.00027886,2]
[321814934,1712535043618,-244.59621163,0.00027899,2]
[321814936,1712535043627,-300.0,0.000279,2]
[321814938,1712535043636,-14352.91244801,0.00027998,2]
[321814940,1712535043645,-714.70274332,0.00027999,2]
[321814941,1712535043655,-437.97561973,0.00027999,2]
[321814943,1712535043664,-156.91757844,0.00027999,2]
[321814945,1712535043674,-500.0,0.00027999,2]
[321814947,1712535043685,-500.0,0.00027999,2]
[321814950,1712535043696,-500.0,0.00027999,2]
[321814952,1712535043706,-379.65078682,0.00027999,2]
[321814954,1712535043715,-5063.89021399,0.00028,2]
[321814956,1712535043725,-160.83824836,0.00028,3]
[321814958,1712535043735,-16042.654256,0.00028,2]
[321814960,1712535043744,-298.535327,0.00028,2]
[321814962,1712535043753,-151.0,0.00028,2]
[321814964,1712535043762,-151.0,0.00028,2]
[321814966,1712535043773,-224.402972,0.00028,2]
[321814967,1712535043783,-224.402972,0.00028,2]
[321814969,1712535043792,-152.159247,0.00028,2]
[321814972,1712535043802,-152.159247,0.00028,2]
[321814973,1712535043811,-151.0,0.00028,2]
[321814975,1712535043820,-151.0,0.00028,2]
[321814977,1712535043830,-151.0,0.00028,2]
[321814979,1712535043840,-151.0,0.00028,2]
[321814981,1712535043849,-378.006416,0.00028,2]
[321814984,1712535043858,-378.006416,0.00028,2]
[321814985,1712535043868,-291.3604541,0.00028,2]
[321814987,1712535043877,-203.72038042,0.00028018,3]
[321814989,1712535043887,-185.03760598,0.00028018,2]
[321814991,1712535043896,-178.71900764,0.00028018,2]
[321814993,1712535043904,-211.82568144,0.00028018,2]
[321814995,1712535043913,-365.59888098,0.00028018,2]
[321814997,1712535043923,-299.96410977,0.00028018,2]
[321814999,1712535043932,-151.0,0.0002802,2]
[321815001,1712535043941,-151.0,0.0002802,2]
[321815003,1712535043950,-224.402972,0.0002802,2]
[321815005,1712535043959,-224.402972,0.0002802,2]
[321815007,1712535043968,-152.159247,0.0002802,2]
[321815009,1712535043977,-152.159247,0.0002802,2]
[321815011,1712535043986,-151.0,0.0002802,2]
[321815013,1712535043995,-151.0,0.0002802,2]
[321815015,1712535044004,-285.408043,0.0002802,2]
[321815017,1712535044013,-378.006416,0.0002802,2]
[321815019,1712535044022,-378.006416,0.0002802,2]
[321815021,1712535044033,-192.91481296,0.0002802,2]
[321815023,1712535044042,-1482.12028671,0.0002802,2]
[321815025,1712535044052,-155.2986314,0.0002802,2]
[321815027,1712535044061,-155.90637952,0.0002802,3]
[321815029,1712535044070,-235.46220989,0.0002802,2]
[321815031,1712535044079,-156.07139287,0.0002802,2]
[321815033,1712535044092,-501.541674,0.0002802,2]
[321815035,1712535044102,-230.40987733,0.0002802,2]
[321815037,1712535044110,-155.51547205,0.0002802,2]
[321815039,1712535044119,-158.05633547,0.0002802,2]
[321815041,1712535044129,-201.00687971,0.0002802,2]
[321815043,1712535044137,-155.39558152,0.0002802,2]
[321815045,1712535044146,-155.87364312,0.0002802,2]
[321815047,1712535044155,-202.70072822,0.0002802,2]
[321815048,1712535044167,-290.25923092,0.0002802,2]
[321815050,1712535044177,-303.12917732,0.0002802,2]
[321815052,1712535044186,-211.47618057,0.0002802,2]
[321815054,1712535044194,-243.83203438,0.0002802,2]
[321815056,1712535044203,-282.0779007,0.0002802,2]
[321815058,1712535044213,-224.2054183,0.0002802,2]
[321815060,1712535044221,-156.72188827,0.0002802,2]
[321815062,1712535044231,-155.64184032,0.0002802,2]
[321815064,1712535044240,-336.54855302,0.0002802,2]
[321815066,1712535044249,-158.01927284,0.0002802,2]
[321815068,1712535044258,-207.98178099,0.0002802,2]
[321815070,1712535044268,-181.38821394,0.0002802,2]
[321815072,1712535044278,-1442.43440394,0.0002802,2]
[321815074,1712535044288,-261.41934101,0.0002802,2]
[321815076,1712535044298,-288.25852322,0.0002802,2]
[321815078,1712535044308,-155.38043718,0.0002802,2]
[321815079,1712535044318,-179.15092437,0.0002802,2]
[321815089,1712535044413,-388.18841436,0.0002802,2]
[321815091,1712535044427,-250.93300523,0.00028068,2]
[321815093,1712535044448,-151.4779246,0.00028139,2]
[321815095,1712535044458,-244.59621163,0.00028285,2]
[321815097,1712535044470,-250.93300523,0.00028367,2]
[321815099,1712535044481,-151.4779246,0.00028393,2]
[321815101,1712535044492,-996.34762981,0.0002848,2]
[321815103,1712535044503,-151.4779246,0.00028646,2]
[321815105,1712535044514,-250.93300523,0.00028666,2]
[321815107,1712535044526,-244.59621163,0.0002867,2]
[321815109,1712535044536,-154.73791791,0.0002867,2]
[321815276,1712535046314,-1305.7924886,0.0002867,2]
[321820689,1712536238528,-1616.30636342,0.00025698,2]
[321820691,1712536238539,-3616.61356238,0.00025699,2]
[321820693,1712536238548,-1260.98233591,0.00025701,2]
[321820695,1712536238558,-151.4779246,0.00025702,2]
[321820697,1712536238567,-300.0,0.00025758,2]
[321820699,1712536238576,-16067.46455589,0.00025759,2]
[321820701,1712536238587,-6076.47596461,0.00025759,2]
[321820703,1712536238596,-727.28382663,0.00025802,2]
[321820705,1712536238606,-155.07133281,0.00025803,2]
[321820707,1712536238616,-700.3920407,0.00026324,2]
[321820709,1712536238625,-1060.8537116,0.00027297,3]
[321820711,1712536238635,-165.065591,0.00027397,2]
[321820713,1712536238645,-202.586482,0.00027397,2]
[321820715,1712536238654,-187.70383703,0.00027809,2]
[321820717,1712536238664,-563.89523604,0.00027809,2]
[321820719,1712536238674,-29838.95999228,0.0002781,2]
[321820721,1712536238683,-216.10285397,0.00028,2]
[321820723,1712536238693,-420.0,0.00028333,2]
[321820725,1712536238703,-150.18103304,0.00028383,3]
[321820727,1712536238711,-300.0,0.000286,2]
[321820729,1712536238720,-753.73047107,0.0002867,2]
[321820731,1712536238729,-2000.0,0.0002867,2]
[321820734,1712536238738,-2525.42065664,0.0002872,2]
[321820745,1712536238832,-662.68781418,0.00028763,2]
[321820747,1712536238842,-340.1098621,0.00028763,2]
[321820749,1712536238852,-279.11383692,0.00028764,2]
[321820751,1712536238863,-28950.56545738,0.00028765,2]
[321821224,1712536243525,-150.18103305,0.00028477,3]
[321821226,1712536243535,-3319.91896695,0.00028765,2]
[321821239,1712536243637,-1199.94027077,0.00028765,2]
[321823715,1712536975575,1799.0,0.0002722,3]
[321824349,1712537443846,-155.06512735,0.00025872,2]
[321824350,1712537443858,-161.51802796,0.00025873,2]
[321824351,1712537443870,-155.06512735,0.00025873,2]
[321824352,1712537443881,-155.07133281,0.00025889,2]
[321824353,1712537443892,-573.27179688,0.00027,2]
[321824381,1712537446704,-351.54912365,0.00027,2]
[321824445,1712538631873,-300.0,0.00024899,2]
[321824447,1712538631882,-300.0,0.00024899,2]
[321824448,1712538631892,-17986.0709156,0.000249,2]
[321824449,1712538631902,-196.07316921,0.00025,2]
[321824450,1712538631911,-555.9394928,0.0002607,2]
[321824451,1712538631920,-162.131677,0.00026121,2]
[321824452,1712538631930,-224.0999022,0.00026123,2]
[321824453,1712538631940,-160.94813436,0.00026135,2]
[321824454,1712538631949,-195.140613,0.00026268,2]
[321824455,1712538631958,-329.86103918,0.00027196,2]
[321824456,1712538631967,-420.0,0.00027389,2]
[321824457,1712538631976,-845.74186853,0.00027396,2]
[321824458,1712538632308,-727.02810207,0.00027396,2]
[321824459,1712538632318,-172.207023,0.00027397,2]
[321824460,1712538632328,-249.532359,0.00027397,2]
[321824461,1712538632337,-165.065591,0.00027397,2]
[321824462,1712538632346,-202.6555303,0.00027478,2]
[321824463,1712538632355,-329.86103918,0.00027565,2]
[321824465,1712538632364,-153.0,0.00027578,2]
[321824467,1712538632373,-202.6555301,0.00027878,2]
[321824469,1712538632383,-202.6555303,0.00027878,2]
[321824471,1712538632392,-203.3586105,0.00027878,2]
[321824473,1712538632402,-1665.87471,0.00027902,2]
[321824493,1712538637969,-997.85674441,0.00027902,2]
[321824495,1712538637981,-13316.70770372,0.00027902,2]
[321824506,1712538638078,-1099.07654016,0.00027902,2]
[321825065,1712538643094,-853.96302956,0.00027902,2]
[321825252,1712539832118,-686.8412847,0.00025111,2]
[321825254,1712539832127,-155.07133281,0.00025112,2]
[321825256,1712539832137,-5564.97168216,0.0002705,2]
[321825258,1712539832145,-568.11570033,0.00027051,2]
[321825854,1712539843360,-1210.46748417,0.00027051,2]
[321826072,1712539846214,-1379.63126326,0.00027051,2]
[321826073,1712539846252,-7074.54459194,0.00027051,2]
[321826074,1712539846262,-255.076776,0.00027288,2]
[321826075,1712539846271,-195.601657,0.00027397,2]
[321826076,1712539846280,-172.207023,0.00027397,2]
[321826077,1712539846290,-156.60616271,0.00027413,2]
[321826078,1712539846299,-300.0,0.00027472,2]
[321826079,1712539846309,-300.0,0.00027472,2]
[321826080,1712539846319,-1015.72260722,0.00027802,2]
[321826081,1712539846329,-753.73047107,0.00027902,2]
[321826082,1712539846340,-11905.48126443,0.00027902,2]
[321826083,1712539846350,-374.01709706,0.00028,2]
[321826084,1712539846360,-153.0,0.000281,2]
[321826085,1712539846370,-153.7652439,0.000281,2]
[321826086,1712539846379,-153.0,0.00028138,2]
[321826087,1712539846390,-153.0,0.00028138,2]
[321826088,1712539846400,-153.0,0.00028138,2]
[321826089,1712539846410,-374.01709706,0.00028168,2]
[321826090,1712539846421,-379.99757424,0.00028193,2]
[321826091,1712539846434,-153.0,0.000282,2]
[321826092,1712539846444,-153.0,0.000283,2]
[321826093,1712539846454,-153.0,0.000283,2]
[321826094,1712539846464,-153.0,0.000283,2]
[321826095,1712539846474,-153.0,0.000283,2]
[321826096,1712539846486,-153.0,0.000283,2]
[321826097,1712539846496,-374.01709706,0.00028335,2]
[321826098,1712539846507,-150.64795539,0.00028477,3]
[321826099,1712539846518,-374.01709706,0.00028503,2]
[321826100,1712539846529,-156.60616269,0.00028557,2]
[321826101,1712539846540,-292.82557542,0.0002867,2]
[321826102,1712539846552,-81.19152164,0.0002867,2]
[321826103,1712539846562,-2000.0,0.0002867,2]
[321826104,1712539846572,-574.137505,0.000287,2]
[321826105,1712539846582,-699.03220334,0.00028765,2]
[321826106,1712539846594,-287.80305115,0.00028766,2]
[321826107,1712539846604,-2334.87752715,0.00028766,2]
[321826112,1712540343133,2448.98875413,0.00025,5]
[321826117,1712540553832,350.0,0.000262,30]
[321826118,1712540566977,154.55948925,0.00024,2]
[321826119,1712540567001,191.28851075,0.00024,2]
[321826124,1712540830140,662.68781418,0.00024,2]
[321826188,1712541032333,-155.06357607,0.00026449,2]
[321826190,1712541032342,-276.96705132,0.0002645,2]
[321826192,1712541032351,-255.076776,0.0002646,2]
[321826194,1712541032361,-702.0936422,0.00026489,2]
[321826196,1712541032370,-183.904341,0.00027397,2]
[321826198,1712541032379,-294.828697,0.00027397,2]
[321826200,1712541032389,-734.15646609,0.000274,2]
[321826202,1712541032398,-2000.0,0.000275,2]
[321826204,1712541032407,-2102.319779,0.0002751,2]
[321826205,1712541032416,-300.0,0.00027902,2]
[321826206,1712541032425,-130.77226564,0.00027902,2]
[321826739,1712541046366,-1458.61447153,0.00026449,2]
[321826740,1712541046375,-169.22773436,0.00027902,2]
[321826741,1712541046385,-26222.49448738,0.00027903,2]
[321827903,1712543432777,-400.0,0.00026915,2]
[321827904,1712543432789,-400.0,0.00026916,2]
[321827905,1712543432802,-400.0,0.00026916,2]
[321827906,1712543432815,-626.16631483,0.00026924,2]
[321827907,1712543432829,-1573.13173796,0.00027,2]
[321827908,1712543432841,-163.20486142,0.00027297,2]
[321827909,1712543432854,-159.577685,0.00027397,2]
[321827910,1712543432866,-195.601657,0.00027397,2]
[321827911,1712543432879,-172.207023,0.00027397,2]
[321827912,1712543432891,-185.82583265,0.00027803,2]
[321827913,1712543432903,-1060.8537116,0.00027803,3]
[321827914,1712543432914,-946.72308658,0.00027888,2]
[321827915,1712543432924,-300.0,0.00027888,2]
[321827916,1712543432934,-229.0,0.00027888,2]
[321827917,1712543432945,-485.94827898,0.00027889,2]
[321827918,1712543432956,-479.76991671,0.00027889,2]
[321827919,1712543432968,-500.0,0.00027889,2]
[321827920,1712543432979,-500.0,0.00027889,2]
[321827921,1712543432991,-603.3396359,0.00027889,2]
[321827922,1712543433005,-52420.244011,0.0002789,2]
[321828452,1712543443772,-400.0,0.00026915,2]
[321828455,1712543443782,-3513.26025354,0.0002789,2]
[321828457,1712543443792,-273.67526748,0.00027903,2]
[321828459,1712543443801,-3619.66687823,0.00027903,2]
[321828461,1712543443814,-8134.44400979,0.00028,2]
[321828463,1712543443823,-202.6810334,0.00028,2]
[321828464,1712543443832,-42.07713372,0.00028,2]
[321828862,1712543839149,10000.0,0.00026,120]
[321828952,1712544638014,-400.0,0.00027396,2]
[321828954,1712544638025,-177.822676,0.00027397,2]
[321828956,1712544638035,-280.087262,0.00027397,2]
[321828958,1712544638045,-159.577688,0.00027397,2]
[321828960,1712544638054,-679.23316771,0.00027499,2]
[321828962,1712544638065,-300.0,0.00027499,2]
[321828964,1712544638074,-1367.54121115,0.000275,2]
[321829352,1712544643093,-184.92233345,0.000254,2]
[321829353,1712544643102,-15693.26460139,0.000275,2]
[321829354,1712544643117,-1199.93908889,0.000275,2]
[321829355,1712544643128,-1199.99677187,0.000275,2]
[321829427,1712545832118,-162.82315735,0.00027078,2]
[321829429,1712545832128,-380.9863615,0.00027127,2]
[321829431,1712545832138,-200.0,0.00027187,2]
[321829432,1712545832151,-162.617856,0.00027397,2]
[321829434,1712545832160,-172.207026,0.00027397,2]
[321829435,1712545832169,-188.19613238,0.000274,2]
[321829436,1712545832178,-291.7803552,0.00027499,2]
[321829437,1712545832188,-300.0,0.00027499,2]
[321829438,1712545832198,-1706.51668172,0.000275,2]
[321829439,1712545832276,-8674.90301059,0.000275,2]
[321829440,1712545832286,-150.6479554,0.00027719,3]
[321829441,1712545832295,-153.0,0.000279,2]
[321829442,1712545832304,-153.0,0.000279,2]
[321829443,1712545832313,-153.0,0.000279,2]
[321829444,1712545832323,-153.0,0.000279,2]
[321829445,1712545832332,-409.419958,0.000279,2]
[321829446,1712545832341,-153.0,0.000279,2]
[321829447,1712545832349,-168.83400162,0.000279,2]
[321829448,1712545832358,-8134.44400979,0.00028,2]
[321829449,1712545832367,-306.0,0.00028,2]
[321829450,1712545832376,-168.83400158,0.00028092,2]
[321829451,1712545832386,-168.83400158,0.00028285,2]
[321829452,1712545832396,-1225.29384074,0.00028475,2]
[321829453,1712545832405,-168.83400158,0.00028477,2]
[321829454,1712545832414,-162.82315733,0.00028489,2]
[321829455,1712545832424,-168.83400158,0.00028669,2]
[321829456,1712545832433,-2000.0,0.0002867,2]
[321829457,1712545832442,-151.06495793,0.00028677,2]
[321829458,1712545832451,-33593.62884547,0.000287,2]
[321829490,1712545838137,-1060.66818531,0.00027126,2]
[321829496,1712545838190,-1032.13020176,0.00027126,2]
[321829498,1712545838199,-959.80219206,0.000287,2]
[321829693,1712545840220,-701.41535698,0.000287,2]
[321829694,1712545840232,-2544.6485917,0.000287,2]
[321829704,1712545840330,-4787.79166127,0.000287,2]
[321829756,1712545843220,-150.6479554,0.00028412,3]
[321829757,1712545843231,-3720.73396075,0.000287,2]
[321829758,1712545843248,-17629.57376707,0.000287,2]
[321829759,1712545843330,-43840.81450434,0.000287,2]
[321829760,1712545843342,-2399.93677119,0.000287,2]
[321829775,1712545846169,-920.97,0.00028,2]
[321829812,1712547032384,-155.0697814,0.00026023,2]
[321829813,1712547032394,-1658.1852484,0.00026024,2]
[321830052,1712547040332,-268.58464317,0.00026024,2]
[321830553,1712547046471,-2252.86026583,0.00026024,2]
[321830554,1712547046481,-161.0490912,0.00026045,2]
[321830555,1712547046490,-482.75522532,0.000261,2]
[321830557,1712547052971,218.18757668,0.00023945,2]
[321830581,1712547985657,357.07515434,0.00024,2]
[321830588,1712548042260,334.364116,0.000262,3]
[321830590,1712548096377,357.40003351,0.000262,3]
[321830611,1712548233669,-229.3015016,0.00026188,2]
[321830612,1712548233680,-300.0,0.00026312,2]
[321830613,1712548233689,-300.0,0.00026312,2]
[321830614,1712548233698,-5814.09015352,0.00026313,2]
[321830615,1712548233724,-5228.52083648,0.00026313,2]
[321830616,1712548233734,-1244.5037414,0.00026413,2]
[321830617,1712548233745,-200.25464026,0.000272,2]
[321830618,1712548233755,-153.5278162,0.000272,2]
[321830619,1712548233765,-13.19296566,0.000272,2]
[321830620,1712548233778,-139.80703434,0.000272,2]
[321830621,1712548233788,-6569.78958185,0.0002726,3]
[321830622,1712548233797,-306.0,0.000273,2]
[321830623,1712548233807,-153.0,0.000273,2]
[321830624,1712548233816,-167.412441,0.00027397,2]
[321830625,1712548233826,-177.822676,0.00027397,2]
[321830626,1712548233836,-266.082898,0.00027397,2]
[321830627,1712548233845,-162.009826,0.00027397,2]
[321830628,1712548233854,-309.95100868,0.00027498,2]
[321830629,1712548233864,-184.11565085,0.00027498,2]
[321830630,1712548233873,-395.29318762,0.00027498,2]
[321830631,1712548233887,-946.72308658,0.00027498,2]
[321830632,1712548233896,-5943.3642476,0.000275,2]
[321830633,1712548233911,-23898.79711801,0.000275,2]
[321830634,1712548233920,-153.0,0.000275,2]
[321830635,1712548233930,-485.94827898,0.00027532,2]
[321830636,1712548233939,-479.76991671,0.00027532,2]
[321830637,1712548233949,-500.0,0.00027532,2]
[321830638,1712548233959,-500.0,0.00027532,2]
[321830639,1712548233969,-603.3396359,0.00027532,2]
[321830640,1712548233978,-306.0,0.00027534,2]
[321830641,1712548233987,-153.0,0.00027534,2]
[321830642,1712548233996,-153.0,0.00027534,2]
[321830643,1712548234005,-153.0,0.00027534,2]
[321830644,1712548234015,-200.25464023,0.00027566,2]
[321830645,1712548234025,-200.25464023,0.00027933,2]
[321830646,1712548234034,-7213.47400979,0.00028,2]
[321830647,1712548234044,-153.0,0.00028164,2]
[321830648,1712548234053,-153.0,0.00028164,2]
[321830649,1712548234062,-202.7046065,0.00028164,2]
[321830650,1712548234071,-153.0,0.00028164,2]
[321830651,1712548234080,-202.7046065,0.00028164,2]
[321830652,1712548234090,-506.0,0.000282,2]
[321830653,1712548234099,-200.25464023,0.00028299,2]
[321830654,1712548234109,-151.06193539,0.00028396,2]
[321830655,1712548234117,-202.7046065,0.00028411,2]
[321830656,1712548234127,-152.0,0.00028432,2]
[321830657,1712548234137,-200.25464023,0.00028665,2]
[321830658,1712548234146,-2000.0,0.0002867,2]
[321830659,1712548234155,-24260.98200042,0.000287,2]
[321830661,1712548238513,-2785.69403851,0.000287,2]
[321830662,1712548238623,-6942.8,0.000287,2]
[321831182,1712548243693,-1678.399999,0.000287,2]
[321831583,1712549438850,-164.09204601,0.00027297,2]
[321831585,1712549438860,-300.0,0.000273,2]
[321831587,1712549438870,-300.0,0.000273,2]
[321831589,1712549438880,-1127.20887207,0.00027301,2]
[321831819,1712549440782,-3830.747031,0.00027301,2]
[321831826,1712549440838,-2556.36687305,0.00027301,2]
[321831854,1712549441086,-4136.92063408,0.00027301,2]
[321831856,1712549441095,-193.33196,0.00027397,2]
[321831857,1712549441104,-167.412442,0.00027397,2]
[321831858,1712549441113,-164.09204601,0.00027564,2]
[321831859,1712549441122,-164.09204601,0.00027831,2]
[321831860,1712549441130,-248.92866719,0.00027838,2]
[321831861,1712549441139,-11359.46122514,0.00027839,2]
[321832453,1712549446874,-830.6395,0.00027839,2]
[321832456,1712549446889,-3040.39570742,0.00027839,2]
[321832458,1712549446904,-422.22153081,0.00027839,2]
[321832462,1712549446932,-970.87276791,0.00027839,2]
[321833057,1712550638062,-179.097438,0.00027397,2]
[321833059,1712550638071,-238.74059862,0.00027397,2]
[321833061,1712550638083,-14.03815438,0.00027397,2]
[321833063,1712550638092,-164.09204601,0.00027739,2]
[321833065,1712550638101,-300.0,0.00027838,2]
[321833067,1712550638111,-11503.86888153,0.00027839,2]
[321833069,1712550638123,-1714.7017528,0.00027839,2]
[321833071,1712550638133,-501.62669927,0.00027839,2]
[321833271,1712550640039,-4059.43052216,0.00027839,2]
[321833595,1712550643220,-170.5588421,0.00026999,2]
[321833597,1712550643229,-3465.90127341,0.00027839,2]
[321833939,1712550646936,-179.985916,0.00027397,2]
[321833941,1712550646946,-8016.54382702,0.00027839,2]
[321833943,1712550646955,-185.82583265,0.000282,2]
[321833945,1712550646964,-153.0,0.000284,2]
[321833947,1712550646973,-153.0,0.000284,2]
[321833949,1712550646983,-164.09204601,0.00028426,2]
[321833951,1712550646992,-1000.0,0.000285,2]
[321833953,1712550647002,-1000.0,0.000285,2]
[321833955,1712550647011,-9196.72072188,0.00028555,2]
[321833957,1712550647021,-202.07499,0.000286,2]
[321833959,1712550647030,-153.0,0.00028666,2]
[321833961,1712550647040,-153.0,0.00028666,2]
[321833963,1712550647049,-153.0,0.00028666,2]
[321833965,1712550647058,-153.0,0.00028666,2]
[321833967,1712550647068,-153.0,0.00028666,2]
[321833969,1712550647077,-153.0,0.00028666,2]
[321833971,1712550647087,-153.0,0.00028666,2]
[321833974,1712550647096,-153.0,0.00028666,2]
[321833976,1712550647105,-153.0,0.00028666,2]
[321833978,1712550647114,-2000.0,0.0002867,2]
[321833980,1712550647123,-468.4539446,0.0002867,2]
[321833981,1712550647133,-500.0,0.0002867,2]
[321833983,1712550647142,-253.15688201,0.0002867,2]
[321833986,1712550647152,-375.2778543,0.0002867,2]
[321833987,1712550647162,-200.76597625,0.0002867,2]
[321833990,1712550647171,-8134.44400979,0.00028671,2]
[321833991,1712550647180,-162504.92903229,0.000287,2]
[321833994,1712550647192,-45675.81883304,0.000287,2]